[Event "Reykjavik Open 2024"]
[Site "Reykjavik"]
[Date "2024.03.17"]
[Round "4.20"]
[White "Galperin, Platon"]
[Black "Bisby, Daniel L"]
[Result "1/2-1/2"]
[ECO "E94"]
[WhiteElo "2555"]
[BlackElo "2273"]
[Annotator "TA"]
[PlyCount "158"]
[EventDate "2024.03.12"]
[EventCountry "ISL"]
[SourceTitle "playchess.com"]
[Source "ChessBase"]
[SourceQuality "1"]
[TimeControl "40/5400+30:1800+30"]

{[%evp 18,158,75,48,77,49,47,42,34,40,40,52,52,32,62,56,49,62,85,37,88,84,84,53,88,0,94,76,72,72,115,112,167,143,120,138,130,96,122,131,179,165,157,155,155,118,133,129,118,0,0,0,0,0,150,147,172,147,150,146,303,52,832,772,741,0,0,-140,-120,-269,-261,-239,-239,-239,-232,-225,-225,-188,-188,-188,-188,-273,-273,-273,-273,-280,-273,-376,-255,-432,-390,-687,-683,-795,-804,-754,-726,-691,-658,-1109,-1051,-1266,-1125,-2888,-2912,-2208,-2149,-12835,-85,-85,-85,-85,-85,-85,-85,-85,-85,-85,-85,-85,-85,-85,-85,-85,-85,-85,-82,-82,-82,-82,-82,-82,-82,-82,-82,-82,-82,-82,-81,-81,-77,-77,-8]} 1. d4 {[%emt 0:02:54]} Nf6 {[%emt 0:00:46]} 2. c4 {[%emt 0:00:06]} g6 {[%emt 0:00:34]} 3. Nc3 {[%emt 0:00:06]} Bg7 {[%emt 0:00:15]} 4. e4 {[%emt 0:00:07]} d6 {[%emt 0:01:06]} 5. Be2 {[%emt 0:00:05]} O-O {[%emt 0:00:38]} 6. Nf3 {[%emt 0:00:07]} Nbd7 {[%emt 0:01:11]} 7. O-O {[%emt 0:00:14]} e5 {[%emt 0:00:13]} 8. Be3 {[%emt 0:00:06]} Qe7 {[%emt 0:01:48]} 9. Qc2 {[%emt 0:01:23]} c6 {[%emt 0:03:22]} 10. Rad1 {[%emt 0:02:36]} h6 {[%emt 0:03:38]} 11. dxe5 {[%emt 0:05:10]} dxe5 {[%emt 0:01:24]} 12. a3 {[%emt 0:00:31]} Nh5 {[%emt 0:07:42] Weiß steht etwas besser.} 13. g3 {[%emt 0:01:49] Verhindert Nf4} Nc5 {[%emt 0:12:28]} 14. b4 {[%emt 0:00:47]} Ne6 {[%emt 0:00:11]} 15. Rfe1 {[%emt 0:07:54]} Qc7 {[%emt 0:16:32]} 16. c5 {[%emt 0:09:59]} Nf6 {[%emt 0:01:05]} 17. Na4 {[%emt 0:03:12][%cal Bc3a4,Ba4b2,Bb2d3][%mdl 32]} Ng4 {[%emt 0:05:57]} 18. Bc1 {[%emt 0:01:15]} (18. Bd2 $1 $16) 18... Nd4 {[%emt 0:05:10]} ({Vorzuziehen ist} 18... b5 $14) 19. Nxd4 $16 {[%emt 0:00:20]} exd4 {[%emt 0:00:06]} 20. Bf4 {[%emt 0:11:39]} Be5 {[%emt 0:09:57]} 21. Bc1 {[%emt 0:02:36]} Bg7 $1 {[%emt 0:05:20]} 22. Nb2 {[%emt 0:00:21]} b5 {[%emt 0:03:00]} 23. Nd3 {[%emt 0:03:32]} h5 {[%emt 0:02:04]} 24. Bf4 {[%emt 0:02:17]} Qd8 {[%emt 0:00:54]} (24... Qb7 $16 25. Bf1 Re8) 25. Bd6 {[%emt 0:07:11]} Re8 {[%emt 0:00:13]} 26. Bf3 {[%emt 0:00:40]} a5 {[%emt 0:08:23]} 27. Bg2 {[%emt 0:10:28]} Be6 {[%emt 0:02:26]} 28. e5 {[%emt 0:00:12]} Qd7 {[%emt 0:01:21]} (28... Qc8 $16) 29. a4 $1 $18 {[%emt 0:01:52]} Bc4 {[%emt 0:01:43]} 30. h3 {[%emt 0:02:44]} Nh6 {[%emt 0:00:38]} 31. bxa5 {[%emt 0:00:55]} Rxa5 {[%emt 0:00:41]} 32. Nb4 {[%emt 0:00:09][%csl LRc6,LRd4]} Rxa4 {[%emt 0:01:12][%cal Ba5a4,Ba4b4,Bb4b2][%mdl 32]} 33. Bxc6 {[%emt 0:00:59]} ({Der einzige Zug:} 33. Nxc6 $16 d3 34. Rxd3) 33... Qxh3 $1 $11 {[%emt 0:00:28]} 34. Bxe8 {[%emt 0:06:33][%cal Od1d4] Rxd4! ist eine echte Drohung.} Rxb4 $40 {[%emt 0:02:31][%mdl 128] Schwarz hat einigen Angriff.} 35. Qe4 {[%emt 0:00:53][%cal Oe8d7] Verhindert Bd5. Schach mit Chili.} Ng4 {[%emt 0:02:18]} ({Günstiger ist} 35... Rb2 $1 $11 36. Rxd4 (36. Qxd4 $2 Ng4 $19) 36... Ng4) 36. Qg2 $1 $16 {[%emt 0:00:06] Aktives Gegenspiel!} (36. Rxd4 $2 Qh2#) 36... Qxg2+ {[%emt 0:00:10]} 37. Kxg2 {[%emt 0:00:05]} Rb2 {[%emt 0:00:13]} 38. Rxd4 {[%emt 0:00:50]} Nxf2 $2 {[%emt 0:00:49]} (38... Rxf2+ $16 39. Kg1 Rc2) 39. Kf3 $2 {[%emt 0:01:59]} (39. Rxc4 $1 $18 Nd3+ (39... bxc4 $2 40. c6 $18) 40. Kf1 Nxe1 (40... bxc4 $2 41. c6 $18) 41. c6 (41. Rf4 Nd3 $18) 41... bxc4 42. c7 (42. Kxe1 $2 c3 $19)) 39... g5 $2 {[%emt 0:00:46][%mdl 8192] [#]} (39... Nd3 $14 40. Rxd3 Bxd3) 40. Rxc4 $1 $18 {[%emt 0:00:59][%mdl 512]} bxc4 {[%emt 0:00:30]} 41. Re2 $2 {[%emt 0:30:33]} (41. c6 $18) 41... c3 $1 $11 {[%emt 0:02:58]} 42. Ba4 {[%emt 0:00:00] Verhindert Nd1.} (42. Rxf2 $2 Rxf2+ 43. Kxf2 c2 $19) (42. e6 $11 {hält das Gleichgewicht.} fxe6 (42... c2 $2 43. Bxf7+ Kh7 44. Rxc2 $18) 43. Bg6 (43. Rxf2 $2 Rxf2+ 44. Kxf2 c2 $19) (43. Kxf2 $2 Bd4+ 44. Kf1 c2 $19)) 42... Nd3 $1 $17 {[%emt 0:17:07]} 43. c6 {[%emt 0:00:00]} (43. e6 $17 fxe6 44. c6 g4+ 45. Ke3) 43... g4+ $19 {[%emt 0:00:43]} 44. Ke3 {[%emt 0:04:15]} Nxe5 {[%emt 0:00:59]} 45. Kf2 {[%emt 0:00:28] [#]} Nxc6 {[%emt 0:03:36][%mdl 512]} 46. Bxc6 {[%emt 0:00:11] [#]} Bd4+ $1 {[%emt 0:00:09]} (46... Rxe2+ 47. Kxe2 Bf6 48. Bd7 $14) (46... h4 47. gxh4 Bd4+ 48. Kf1 $15) 47. Kf1 {[%emt 0:00:08]} c2 {[%emt 0:00:18]} 48. Bf4 {[%emt 0:02:11]} Rb1+ {[%emt 0:00:23]} 49. Kg2 {[%emt 0:00:08]} (49. Re1 $142 Be5 50. Be3) 49... c1=Q {[%emt 0:00:17]} ({Auf keinen Fall} 49... c1=R 50. Bxc1 Rxc1 51. Re4 $19) 50. Bxc1 {[%emt 0:00:07]} Rxc1 {[%emt 0:00:09][%mdl 4096] Endspiel. KRB-KRB} 51. Bd5 {[%emt 0:00:13]} Kg7 {[%emt 0:02:25]} 52. Re4 {[%emt 0:01:12]} Rd1 {[%emt 0:01:36] Droht ...f5 und aus.} 53. Rf4 $2 {[%emt 0:01:03]} (53. Re7 Rd2+ 54. Kh1) 53... Rd2+ {[%emt 0:00:25]} 54. Kh1 $2 {[%emt 0:00:37]} (54. Kf1 f6 55. Rf5) 54... f6 {[%emt 0:01:02] Und ...Be5 würde nun gewinnen.} 55. Rf5 {[%emt 0:00:40]} Be5 {[%emt 0:00:52]} 56. Bc6 {[%emt 0:01:28]} Kg6 {[%emt 0:00:40]} 57. Be4 {[%emt 0:00:09]} Kh6 {[%emt 0:00:11]} (57... Bxg3 58. Rf2+ f5 59. Bxf5+ Kg5 60. Rxd2 $11) 58. Bc6 {[%emt 0:00:07]} Bxg3 {[%emt 0:01:35] Und jetzt ...Be5 wäre schön.} 59. Rxf6+ {[%emt 0:01:46]} Kg5 {[%emt 0:00:07]} 60. Rf7 {[%emt 0:00:40]} Be5 {[%emt 0:01:01]} 61. Kg1 {[%emt 0:01:27]} h4 {[%emt 0:00:34]} 62. Bd7 {[%emt 0:00:23]} Bf6 $2 {[%emt 0:00:55]} (62... h3 $19 63. Kf1 h2) 63. Bxg4 $17 {[%emt 0:00:55] Schwarz steht besser.} Bd4+ {[%emt 0:00:16]} 64. Kh1 {[%emt 0:00:08]} Kxg4 {[%emt 0:00:26] KRB-KR} 65. Rf4+ {[%emt 0:00:07]} Kg5 {[%emt 0:02:14]} (65... Kg3 66. Rf3+ Kg4 67. Rf4+ Kg5 (67... Kg3 68. Rf3+ Kg4 69. Rf4+ $19) 68. Rg4+ Kf6 (68... Kh5 69. Rxh4+ Kg6 70. Rh2 $15) 69. Rxh4) 66. Rg4+ {[%emt 0:00:11]} Kf5 {[%emt 0:00:47]} 67. Rf4+ {[%emt 0:00:10]} Ke5 {[%emt 0:00:12]} 68. Re4+ {[%emt 0:00:24]} Kd5 {[%emt 0:00:16] ( -> ...Rd1+)} 69. Rxh4 {[%emt 0:00:07]} Be5 {[%emt 0:01:16]} 70. Kg1 {[%emt 0:00:25]} Ke6 {[%emt 0:00:19]} 71. Rh5 {[%emt 0:00:57]} Bf4 {[%emt 0:00:24]} 72. Kf1 {[%emt 0:00:30]} Kf6 {[%emt 0:00:14]} 73. Ke1 {[%emt 0:01:00]} Ra2 {[%emt 0:00:38]} 74. Rc5 {[%emt 0:00:16]} Be5 {[%emt 0:00:27]} 75. Kd1 {[%emt 0:00:09]} Kf5 {[%emt 0:00:07]} 76. Rc2 {[%emt 0:00:08]} Ra4 {[%emt 0:00:18]} 77. Re2 {[%emt 0:00:22]} Bf4 {[%emt 0:00:28]} 78. Kc2 {[%emt 0:00:11]} Ra2+ {[%emt 0:01:29]} 79. Kd3 {[%emt 0:00:06]} Rxe2 {[%emt 0:00:09] Gewichteter Fehlerwert: Weiß=0.67/Schwarz=0.18 (sehr präzise) .  Verlustzug:     	---       	Schwarz=1     Gewinn verpasst:   	Weiß=1     	---        Fehler:       	Weiß=6     	Schwarz=6     Ungenau:       	Weiß=3     	Schwarz=4     OK:         	Weiß=21    	Schwarz=17    Bester:       	Weiß=7     	Schwarz=7     Stark:        	Weiß=1     	Schwarz=4     Brilliant:      	Weiß=1     	Schwarz=1} (79... Ra3+ 80. Kd4 Ra1 81. Kc3 Be5+ 82. Kd3 Ra3+ 83. Kc4 Ra4+ 84. Kb5) (79... Ra8 $17) 1/2-1/2

[Event "Reykjavik Open 2024"]
[Site "Reykjavik"]
[Date "2024.03.17"]
[Round "4.21"]
[White "Pourkashiyan, Atousa"]
[Black "Naudin, Yvan"]
[Result "1-0"]
[ECO "B32"]
[WhiteElo "2270"]
[BlackElo "1912"]
[Annotator "RC"]
[PlyCount "48"]
[EventDate "2024.03.12"]
[EventCountry "ISL"]
[SourceTitle "playchess.com"]
[Source "ChessBase"]
[SourceQuality "1"]
[TimeControl "40/5400+30:1800+30"]

1. e4 {[%emt 0:04:21]} c5 {[%emt 0:00:30]} 2. Nf3 {[%emt 0:00:16]} Nc6 {[%emt 0:00:10]} 3. d4 {[%emt 0:01:01]} cxd4 {[%emt 0:00:12]} 4. Nxd4 {[%emt 0:00:07]} e5 {[%emt 0:00:08]} 5. Nb5 {[%emt 0:00:19]} d6 {[%emt 0:00:09]} 6. N1c3 {[%emt 0:01:25]} a6 {[%emt 0:00:13]} 7. Na3 {[%emt 0:00:06]} Be6 {[%emt 0:00:14]} 8. Nd5 {[%emt 0:09:09]} Bxd5 {[%emt 0:10:45]} 9. exd5 {[%emt 0:01:01]} Nce7 {[%emt 0:01:16]} 10. c4 {[%emt 0:01:02]} f5 {[%emt 0:02:46]} 11. Be2 {[%emt 0:04:53]} g6 {[%emt 0:03:40]} 12. O-O {[%emt 0:05:35]} Nf6 {[%emt 0:03:26]} 13. f4 {[%emt 0:05:23]} Qb6+ {[%emt 0:39:13]} 14. Kh1 {[%emt 0:00:55]} exf4 {[%emt 0:06:59]} 15. Bxf4 {[%emt 0:08:05]} Bg7 {[%emt 0:03:17]} 16. Qa4+ {[%emt 0:07:50]} Kf7 {[%emt 0:00:44]} 17. c5 {[%emt 0:15:22]} Qxc5 {[%emt 0:15:37]} 18. Rac1 {[%emt 0:04:00]} b5 {[%emt 0:00:07]} 19. Qa5 {[%emt 0:01:53]} Qd4 {[%emt 0:03:06]} 20. Bxd6 {[%emt 0:03:48]} Nfxd5 {[%emt 0:04:12]} 21. Bf3 {[%emt 0:06:30]} Rad8 {[%emt 0:02:49]} 22. Qxa6 {[%emt 0:06:29]} Qa4 {[%emt 0:00:42]} 23. Bxd5+ {[%emt 0:03:00]} Nxd5 {[%emt 0:00:23]} 24. Qb7+ {[%emt 0:00:12]} Ke6 {[%emt 0:00:39]} 1-0

[Event "Reykjavik Open 2024"]
[Site "Reykjavik"]
[Date "2024.03.17"]
[Round "4.22"]
[White "Thieu, Nguyen Gia Bao"]
[Black "Large, Peter G"]
[Result "0-1"]
[ECO "C45"]
[WhiteElo "1906"]
[BlackElo "2262"]
[Annotator "TA"]
[PlyCount "58"]
[EventDate "2024.03.12"]
[EventCountry "ISL"]
[SourceTitle "playchess.com"]
[Source "ChessBase"]
[SourceQuality "1"]
[TimeControl "40/5400+30:1800+30"]

{[%evp 9,58,49,38,34,37,46,73,65,71,52,74,31,72,80,77,75,71,76,72,88,78,78,95,89,135,120,124,109,126,125,116,0,0,-26,0,-58,-54,-54,-38,-88,-86,-91,-60,-291,-310,-392,-393,-417,-394,-1094,-1068]} 1. e4 {[%emt 0:00:03]} e5 {[%emt 0:00:51]} 2. Bc4 {[%emt 0:00:11]} Nc6 {[%emt 0:00:10]} 3. Nf3 {[%emt 0:00:05]} g6 {[%emt 0:01:03]} 4. d4 {[%emt 0:01:12]} exd4 {[%emt 0:00:22]} 5. Nxd4 {[%emt 0:00:07]} Bg7 {[%emt 0:00:06]} 6. Nxc6 {[%emt 0:01:05]} bxc6 {[%emt 0:00:08]} 7. O-O {[%emt 0:00:19]} Nh6 {[%emt 0:02:07]} 8. Nc3 {[%emt 0:00:44] White is better.} O-O {[%emt 0:00:39]} 9. Bf4 {[%emt 0:02:17]} d6 {[%emt 0:00:15]} 10. h3 {[%emt 0:00:09] Strongly threatening Qd2.} Be6 {[%emt 0:00:46]} 11. Bb3 {[%emt 0:00:57] Qd2 would now be deadly.} Kh8 {[%emt 0:00:10]} 12. Qd2 {[%emt 0:02:23]} Ng8 {[%emt 0:00:08]} 13. Rfe1 {[%emt 0:00:21]} Ne7 {[%emt 0:11:45]} 14. Bxe6 {[%emt 0:12:02]} fxe6 {[%emt 0:00:08]} 15. e5 {[%emt 0:00:25]} d5 {[%emt 0:04:20]} 16. Na4 {[%emt 0:02:28]} Nf5 {[%emt 0:05:06]} (16... Nc8 $142) 17. Bg5 $16 {[%emt 0:03:01]} Qe8 {[%emt 0:00:36] Black is weak on the dark squares} 18. Nc5 {[%emt 0:04:00]} Qf7 {[%emt 0:06:59]} 19. a4 {[%emt 0:17:09]} h6 {[%emt 0:07:27]} 20. Bf4 {[%emt 0:01:45]} (20. Bf6 $1 $16 {Hoping for g4.} g5 21. Ra3) 20... g5 $11 {[%emt 0:00:46]} 21. Bg3 {[%emt 0:03:33]} Rg8 {[%emt 0:01:04]} 22. a5 {[%emt 0:04:37]} (22. Nb3 $11) 22... Bf8 $15 {[%emt 0:00:16]} 23. Qc3 {[%emt 0:00:54]} h5 $1 {[%emt 0:15:45] ...Bxc5 is the strong threat.} 24. Nb3 {[%emt 0:05:20]} ({Better is} 24. Kh1 $1 $15) 24... h4 $36 {[%emt 0:01:31][%mdl 2048] Keeping White busy.} 25. Bh2 {[%emt 0:01:25][%cal Of2f3]} (25. Qxc6 $2 {is the wrong capture.} hxg3 26. fxg3 (26. Qxa8 $2 gxf2+ 27. Kxf2 Bc5+ 28. Nxc5 Rxa8 $19) 26... g4 $19) 25... g4 {[%emt 0:01:21]} 26. Bf4 {[%emt 0:02:53] [#] Now White is beyond hope.} (26. Qxc6 gxh3 27. Rec1 (27. Qxa8 {leads to mate.} Rxg2+ 28. Kh1 Rxf2) 27... Nd4 $19 (27... Rxg2+ 28. Kh1 Ng3+ 29. Bxg3 Qf3 30. Qxd5 exd5 31. Bxh4 Rxf2+ 32. Kg1 h2#)) (26. hxg4 $15 Rxg4 27. Qh3) 26... c5 $1 $19 {[%emt 0:01:01][%mdl 512]} 27. Kh1 {[%emt 0:09:01]} (27. Kh2 c4) 27... c4 {[%emt 0:02:16]} 28. Nd4 {[%emt 0:06:18]} gxh3 {[%emt 0:01:04]} 29. gxh3 {[%emt 0:05:44] [#]} (29. g3 Bb4 30. Qxb4 Nxd4 31. Qd2) 29... Bb4 $1 {[%emt 0:01:45][%mdl 512] Weighted Error Value: White=0.60/Black=0.09 (flawless) .  Loses game:     	White=1     	---        Mistake:       	White=4     	Black=1      Inaccurate:     	White=2     	Black=4      OK:         	White=12    	Black=10     Best:        	---       	Black=1      Strong:       	---       	Black=1} 0-1

[Event "Reykjavik Open 2024"]
[Site "Reykjavik"]
[Date "2024.03.17"]
[Round "4.23"]
[White "Ferzli, Michael"]
[Black "Kunz, Andre"]
[Result "1/2-1/2"]
[ECO "D34"]
[WhiteElo "1879"]
[BlackElo "2197"]
[Annotator "RC"]
[PlyCount "78"]
[EventDate "2024.03.12"]
[EventCountry "ISL"]
[SourceTitle "playchess.com"]
[Source "ChessBase"]
[SourceQuality "1"]
[TimeControl "40/5400+30:1800+30"]

1. d4 {[%emt 0:00:03]} d5 {[%emt 0:03:31]} 2. c4 {[%emt 0:00:08]} e6 {[%emt 0:00:03]} 3. Nf3 {[%emt 0:00:15]} c5 {[%emt 0:00:05]} 4. cxd5 {[%emt 0:00:45]} exd5 {[%emt 0:00:02]} 5. g3 {[%emt 0:00:24]} Nc6 {[%emt 0:00:21]} 6. Bg2 {[%emt 0:00:18]} Nf6 {[%emt 0:00:05]} 7. O-O {[%emt 0:00:14]} Be7 {[%emt 0:00:11]} 8. Nc3 {[%emt 0:00:29]} O-O {[%emt 0:00:23]} 9. dxc5 {[%emt 0:00:13]} Bxc5 {[%emt 0:00:14]} 10. Na4 {[%emt 0:02:36]} Be7 {[%emt 0:02:30]} 11. Be3 {[%emt 0:00:00]} Ne4 {[%emt 0:03:53]} 12. Rc1 {[%emt 0:01:03]} Qa5 {[%emt 0:09:16]} 13. a3 {[%emt 0:06:45]} Be6 {[%emt 0:10:44]} 14. b4 {[%emt 0:06:24]} Qa6 {[%emt 0:03:36]} 15. Nd2 {[%emt 0:27:23]} Nxd2 {[%emt 0:18:37]} 16. Bxd2 {[%emt 0:00:09]} Nd4 {[%emt 0:03:00]} 17. Re1 {[%emt 0:07:32]} Rac8 {[%emt 0:07:41]} 18. e3 {[%emt 0:02:07]} Nf5 {[%emt 0:04:52]} 19. Bf1 {[%emt 0:08:34]} b5 {[%emt 0:04:05]} 20. Nc3 {[%emt 0:01:08]} Nd6 {[%emt 0:03:11]} 21. a4 {[%emt 0:02:00]} Qb7 {[%emt 0:05:16]} 22. axb5 {[%emt 0:03:25]} Nc4 {[%emt 0:00:20]} 23. Ne2 {[%emt 0:04:10]} Qxb5 {[%emt 0:06:52]} 24. Nd4 {[%emt 0:00:23]} Qb6 {[%emt 0:00:30]} 25. Nxe6 {[%emt 0:03:31]} fxe6 {[%emt 0:00:50]} 26. Bxc4 {[%emt 0:00:54]} dxc4 {[%emt 0:02:02]} 27. Qg4 {[%emt 0:02:30]} Bxb4 {[%emt 0:01:17]} 28. Bxb4 {[%emt 0:01:57]} Qxb4 {[%emt 0:00:02]} 29. Qxe6+ {[%emt 0:00:09]} Kh8 {[%emt 0:00:05]} 30. Re2 {[%emt 0:01:37]} Qb6 {[%emt 0:08:11]} 31. Qd7 {[%emt 0:05:10]} Rc7 {[%emt 0:00:46]} 32. Qa4 {[%emt 0:00:16]} c3 {[%emt 0:00:56]} 33. Rec2 {[%emt 0:00:23]} Qf6 {[%emt 0:00:40]} 34. Qd4 {[%emt 0:01:32]} Qf3 {[%emt 0:01:29]} 35. Qd1 {[%emt 0:02:54]} Qf6 {[%emt 0:00:44]} 36. Qd4 {[%emt 0:00:05]} Qf5 {[%emt 0:00:45]} 37. Qf4 {[%emt 0:00:55]} Qc8 {[%emt 0:00:52]} 38. Qb4 {[%emt 0:00:31]} Qf5 {[%emt 0:00:24]} 39. Qf4 {[%emt 0:00:12]} Qc8 {[%emt 0:00:16]} 1/2-1/2

[Event "Reykjavik Open 2024"]
[Site "Reykjavik"]
[Date "2024.03.17"]
[Round "4.24"]
[White "Fanos, Haralambos"]
[Black "Karamsetty, Jeevan"]
[Result "0-1"]
[ECO "A42"]
[WhiteElo "1872"]
[BlackElo "2187"]
[Annotator "RC"]
[PlyCount "60"]
[EventDate "2024.03.12"]
[EventCountry "ISL"]
[SourceTitle "playchess.com"]
[Source "ChessBase"]
[SourceQuality "1"]
[TimeControl "40/5400+30:1800+30"]

1. c4 {[%emt 0:03:33]} g6 {[%emt 0:00:23]} 2. d4 {[%emt 0:00:26]} Bg7 {[%emt 0:00:15]} 3. Nc3 {[%emt 0:00:08]} d6 {[%emt 0:01:28]} 4. e4 {[%emt 0:01:00]} e5 {[%emt 0:00:12]} 5. d5 {[%emt 0:00:42]} a5 {[%emt 0:00:12]} 6. Be2 {[%emt 0:00:43]} Na6 {[%emt 0:00:20]} 7. h4 {[%emt 0:05:25]} f5 {[%emt 0:01:51]} 8. h5 {[%emt 0:06:35]} f4 {[%emt 0:08:23]} 9. g3 {[%emt 0:13:31]} g5 {[%emt 0:03:23]} 10. Bg4 {[%emt 0:03:26]} h6 {[%emt 0:01:45]} 11. Qa4+ {[%emt 0:01:51]} Kf8 {[%emt 0:03:47]} 12. Be2 {[%emt 0:10:16]} Nf6 {[%emt 0:02:59]} 13. Nf3 {[%emt 0:00:53]} Bg4 {[%emt 0:09:05]} 14. Qd1 {[%emt 0:03:44]} Qd7 {[%emt 0:16:27]} 15. gxf4 {[%emt 0:00:42]} Bxf3 {[%emt 0:00:33]} 16. Bxf3 {[%emt 0:00:37]} exf4 {[%emt 0:00:14]} 17. Rg1 {[%emt 0:05:35]} Re8 {[%emt 0:00:45]} 18. Bg4 {[%emt 0:00:59]} Nxg4 {[%emt 0:00:51]} 19. Rxg4 {[%emt 0:01:09]} Bxc3+ {[%emt 0:00:53]} 20. bxc3 {[%emt 0:00:24]} Rxe4+ {[%emt 0:00:15]} 21. Kf1 {[%emt 0:01:33]} Rxc4 {[%emt 0:04:35]} 22. Be3 {[%emt 0:03:38]} Qb5 {[%emt 0:04:59]} 23. Kg1 {[%emt 0:01:07]} fxe3 {[%emt 0:02:04]} 24. fxe3 {[%emt 0:03:48]} Ke7 {[%emt 0:04:55]} 25. Rg3 {[%emt 0:03:50]} Qa4 {[%emt 0:04:13]} 26. Qe2 {[%emt 0:04:06]} Rf8 {[%emt 0:00:31]} 27. Rb1 {[%emt 0:04:21]} Nc5 {[%emt 0:00:52]} 28. e4 {[%emt 0:04:33]} Rxe4 {[%emt 0:00:19]} 29. Re3 {[%emt 0:00:07]} Rxe3 {[%emt 0:00:20]} 30. Qxe3+ {[%emt 0:00:07]} Qe4 {[%emt 0:00:39]} 0-1

[Event "Reykjavik Open 2024"]
[Site "Reykjavik"]
[Date "2024.03.17"]
[Round "4.25"]
[White "Hauksdottir, Hrund"]
[Black "Mardell, Jimmy"]
[Result "1/2-1/2"]
[ECO "B44"]
[WhiteElo "1859"]
[BlackElo "2172"]
[Annotator "RC"]
[PlyCount "90"]
[EventDate "2024.03.12"]
[EventCountry "ISL"]
[SourceTitle "playchess.com"]
[Source "ChessBase"]
[SourceQuality "1"]
[TimeControl "40/5400+30:1800+30"]

1. e4 {[%emt 0:00:04]} c5 {[%emt 0:00:09]} 2. Nf3 {[%emt 0:00:15]} e6 {[%emt 0:00:14]} 3. d4 {[%emt 0:00:17]} cxd4 {[%emt 0:00:06]} 4. Nxd4 {[%emt 0:00:06]} Nc6 {[%emt 0:00:09]} 5. c4 {[%emt 0:02:04]} Nf6 {[%emt 0:00:29]} 6. Nc3 {[%emt 0:00:38]} Bb4 {[%emt 0:01:04]} 7. Nxc6 {[%emt 0:03:50]} bxc6 {[%emt 0:00:22]} 8. Bd3 {[%emt 0:02:13]} e5 {[%emt 0:01:09]} 9. O-O {[%emt 0:03:07]} O-O {[%emt 0:01:07]} 10. Be3 {[%emt 0:08:32]} Bxc3 {[%emt 0:03:56]} 11. bxc3 {[%emt 0:00:47]} d6 {[%emt 0:00:06]} 12. Qa4 {[%emt 0:02:19]} c5 {[%emt 0:05:01]} 13. f3 {[%emt 0:08:17]} Qc7 {[%emt 0:03:10]} 14. Rab1 {[%emt 0:03:43]} Nd7 {[%emt 0:08:20]} 15. Rfd1 {[%emt 0:11:26]} Nb6 {[%emt 0:03:05]} 16. Qb5 {[%emt 0:05:06]} Rb8 {[%emt 0:07:03]} 17. Qa5 {[%emt 0:12:14]} Be6 {[%emt 0:08:02]} 18. Qa6 {[%emt 0:10:19]} Rfd8 {[%emt 0:23:48]} 19. Rb3 {[%emt 0:05:16]} Qb7 {[%emt 0:04:24]} 20. Qa5 {[%emt 0:03:36]} Qd7 {[%emt 0:01:21]} 21. Qa6 {[%emt 0:01:02]} Qa4 {[%emt 0:02:56]} 22. Qxa4 {[%emt 0:03:13]} Nxa4 {[%emt 0:00:05]} 23. Rdb1 {[%emt 0:01:06]} Nb6 {[%emt 0:04:47]} 24. Bf2 {[%emt 0:11:43]} Kf8 {[%emt 0:00:42]} 25. a4 {[%emt 0:00:40]} Nd7 {[%emt 0:01:11]} 26. Rb7 {[%emt 0:00:17]} a6 {[%emt 0:07:54]} 27. g3 {[%emt 0:00:18]} Rxb7 {[%emt 0:03:01]} 28. Rxb7 {[%emt 0:00:05]} Nb8 {[%emt 0:00:12]} 29. f4 {[%emt 0:00:33]} f6 {[%emt 0:00:20]} 30. Be2 {[%emt 0:01:00]} Bd7 {[%emt 0:01:20]} 31. Bd1 {[%emt 0:00:31]} Bc6 {[%emt 0:00:21]} 32. Rb6 {[%emt 0:00:52]} Bxe4 {[%emt 0:00:09]} 33. a5 {[%emt 0:00:34]} Bd3 {[%emt 0:02:08]} 34. Bb3 {[%emt 0:00:21]} e4 {[%emt 0:02:04]} 35. f5 {[%emt 0:00:31]} h5 {[%emt 0:01:19]} 36. Be3 {[%emt 0:00:20]} Ke7 {[%emt 0:01:19]} 37. Bf4 {[%emt 0:00:27]} e3 {[%emt 0:02:10]} 38. Bxe3 {[%emt 0:00:44]} Bxf5 {[%emt 0:00:05]} 39. h4 {[%emt 0:00:15]} Be4 {[%emt 0:03:37]} 40. Bf4 {[%emt 0:00:14]} g6 {[%emt 0:00:50]} 41. Kf2 {[%emt 0:30:49]} Nc6 {[%emt 0:14:19]} 42. Ke3 {[%emt 0:00:00]} Bg2 {[%emt 0:00:43]} 43. Rxa6 {[%emt 0:00:00]} Rb8 {[%emt 0:00:06]} 44. Bc2 {[%emt 0:00:00]} f5 {[%emt 0:03:44]} 45. Ba4 {[%emt 0:00:00]} Rc8 {[%emt 0:02:17]} 1/2-1/2

[Event "Reykjavik Open 2024"]
[Site "Reykjavik"]
[Date "2024.03.17"]
[Round "4.26"]
[White "Mannion, Stephen R"]
[Black "Omarsson, Josef"]
[Result "1-0"]
[ECO "B33"]
[WhiteElo "2166"]
[BlackElo "1803"]
[Annotator "RC"]
[PlyCount "79"]
[EventDate "2024.03.12"]
[EventCountry "ISL"]
[SourceTitle "playchess.com"]
[Source "ChessBase"]
[SourceQuality "1"]
[TimeControl "40/5400+30:1800+30"]

1. e4 {[%emt 0:00:03]} c5 {[%emt 0:00:27]} 2. Nf3 {[%emt 0:00:07]} Nc6 {[%emt 0:00:18]} 3. d4 {[%emt 0:00:04]} cxd4 {[%emt 0:00:18]} 4. Nxd4 {[%emt 0:00:05]} Nf6 {[%emt 0:00:30]} 5. Nc3 {[%emt 0:00:04]} e5 {[%emt 0:00:34]} 6. Ndb5 {[%emt 0:00:10]} d6 {[%emt 0:00:34]} 7. Nd5 {[%emt 0:00:09]} Nxd5 {[%emt 0:00:25]} 8. exd5 {[%emt 0:00:05]} Nb8 {[%emt 0:00:33]} 9. a4 {[%emt 0:00:11]} Be7 {[%emt 0:00:30]} 10. Bd2 {[%emt 0:00:15]} O-O {[%emt 0:00:30]} 11. Be2 {[%emt 0:00:26]} f5 {[%emt 0:00:45]} 12. a5 {[%emt 0:00:52]} a6 {[%emt 0:01:01]} 13. Na3 {[%emt 0:00:35]} f4 {[%emt 0:00:52]} 14. Nc4 {[%emt 0:02:52]} Nd7 {[%emt 0:00:53]} 15. O-O {[%emt 0:00:54]} Nf6 {[%emt 0:01:13]} 16. Nb6 {[%emt 0:01:54]} Rb8 {[%emt 0:00:09]} 17. c4 {[%emt 0:00:32]} Bf5 {[%emt 0:01:36]} 18. b4 {[%emt 0:04:30]} Qe8 {[%emt 0:16:19]} 19. Rc1 {[%emt 0:03:08]} Ne4 {[%emt 0:05:52]} 20. f3 {[%emt 0:04:39]} Nxd2 {[%emt 0:08:56]} 21. Qxd2 {[%emt 0:00:11]} Qh5 {[%emt 0:00:21]} 22. Bd3 {[%emt 0:10:10]} Bd8 {[%emt 0:19:26]} 23. c5 {[%emt 0:07:21]} Bxb6 {[%emt 0:01:20]} 24. axb6 {[%emt 0:00:26]} Bxd3 {[%emt 0:00:50]} 25. Qxd3 {[%emt 0:00:15]} Rfd8 {[%emt 0:02:35]} 26. Rfd1 {[%emt 0:16:04]} Qf7 {[%emt 0:05:02]} 27. Qe4 {[%emt 0:04:39]} Qe7 {[%emt 0:03:09]} 28. Rc2 {[%emt 0:12:27]} Rdc8 {[%emt 0:07:04]} 29. Rdc1 {[%emt 0:03:29]} Qd8 {[%emt 0:05:59]} 30. h3 {[%emt 0:02:45]} Ra8 {[%emt 0:03:38]} 31. Kh2 {[%emt 0:04:11]} a5 {[%emt 0:01:41]} 32. bxa5 {[%emt 0:04:28]} Rxa5 {[%emt 0:00:25]} 33. cxd6 {[%emt 0:00:44]} Rxc2 {[%emt 0:01:41]} 34. Qxc2 {[%emt 0:07:34]} Qxd6 {[%emt 0:01:43]} 35. Qc8+ {[%emt 0:00:44]} Kf7 {[%emt 0:04:08]} 36. Qf5+ {[%emt 0:01:04]} Qf6 {[%emt 0:00:28]} 37. Rc7+ {[%emt 0:00:20]} Kg8 {[%emt 0:00:43]} 38. Qc8+ {[%emt 0:00:16]} Qf8 {[%emt 0:00:12]} 39. Qe6+ {[%emt 0:00:08]} Kh8 {[%emt 0:00:13]} 40. Rc8 {[%emt 0:00:08]} 1-0